bitfinex/quotes_BTCUSD_20230110
["timestamp","ask_amount","ask_price","bid_price","bid_amount"]
[1673308802004,2.20263604,17186.0,17185.0,0.01434115]
[1673308802243,2.56469304,17186.0,17185.0,0.01434115]
[1673308802728,1.25444974,17186.0,17185.0,0.00434115]
[1673308802980,2.19916866,17186.0,17185.0,0.01334115]
[1673308803223,2.56122566,17186.0,17185.0,0.01334115]
[1673308803731,2.19916866,17186.0,17185.0,0.01334115]
[1673308804250,2.48622566,17186.0,17185.0,0.00434115]
[1673308804509,2.19690343,17186.0,17185.0,0.01334115]
[1673308804775,2.55896043,17186.0,17185.0,0.01334115]
[1673308805018,2.19690343,17186.0,17185.0,0.01334115]
[1673308805251,2.55896043,17186.0,17185.0,0.01334115]
[1673308806617,2.55896956,17186.0,17185.0,0.01334115]
[1673308810144,1.32373951,17186.0,17185.0,0.01334115]
[1673308810406,1.10310159,17186.0,17185.0,0.94111756]
[1673308810659,0.59845687,17186.0,17185.0,1.86724367]
[1673308810888,0.59845687,17186.0,17185.0,2.22930067]
[1673308811136,0.5110499,17186.0,17185.0,2.81120267]
[1673308811891,0.075,17186.0,17185.0,3.43659927]
[1673308812145,0.075,17186.0,17185.0,3.00200267]
[1673308813144,0.44041499,17187.0,17185.0,2.99300267]
[1673308813390,0.44041499,17187.0,17186.0,0.362057]
[1673308813634,0.4360499,17187.0,17186.0,2.107661]
[1673308813874,0.67011376,17187.0,17186.0,1.745604]
[1673308814137,1.02061426,17187.0,17186.0,1.745604]
[1673308814385,1.20118222,17187.0,17186.0,1.164736]
[1673308814644,1.20118222,17187.0,17186.0,0.582868]
[1673308815191,0.81275427,17187.0,17186.0,0.582868]
[1673308815420,0.46384484,17187.0,17186.0,1.164736]
[1673308815672,0.63987402,17187.0,17186.0,1.164736]
[1673308815914,0.61187402,17187.0,17186.0,1.163736]
[1673308816155,1.0462651,17187.0,17186.0,1.163736]
[1673308816399,0.78475427,17187.0,17186.0,1.163736]
[1673308816633,1.3629694,17187.0,17186.0,0.591868]
[1673308819649,1.04108031,17187.0,17186.0,0.591868]
[1673308819903,0.96708741,17187.0,17186.0,0.01]
[1673308820212,0.60503041,17187.0,17186.0,0.01]
[1673308821689,1.03923525,17187.0,17186.0,0.01]
[1673308821942,1.03923532,17187.0,17186.0,0.01]
[1673308822206,0.60336983,17187.0,17186.0,0.01]
[1673308824218,1.03923348,17187.0,17186.0,0.01]
[1673308825256,1.04089406,17187.0,17186.0,0.01]
[1673308826014,1.38791426,17187.0,17186.0,0.01006859]
[1673308826295,1.38957484,17187.0,17186.0,0.591868]
[1673308826571,0.88302029,17187.0,17186.0,0.591868]
[1673308827046,0.88135971,17187.0,17186.0,0.591868]
[1673308827311,1.14284552,17187.0,17186.0,1.173736]
[1673308827629,0.70698187,17187.0,17186.0,1.173736]
[1673308828565,0.70864245,17187.0,17186.0,1.173736]
[1673308829071,0.70698187,17187.0,17186.0,1.173736]
[1673308829333,0.68016659,17187.0,17186.0,1.17380459]
[1673308829594,0.68016659,17187.0,17186.0,1.85669019]
[1673308829595,0.50579211,17187.0,17186.0,1.85669019]
[1673308831130,0.50272905,17187.0,17186.0,1.85669019]
[1673308831392,0.50272905,17187.0,17186.0,2.43855819]
[1673308831891,0.24124324,17187.0,17186.0,2.43855819]
[1673308832144,0.24124324,17187.0,17186.0,2.80061519]
[1673308832678,0.25681569,17187.0,17186.0,2.80061519]
[1673308833177,0.25681569,17187.0,17186.0,2.43855819]
[1673308836040,0.08250939,17187.0,17186.0,2.43855819]
[1673308836295,0.25681569,17187.0,17186.0,2.43855819]
[1673308836577,0.08250939,17187.0,17186.0,2.43855819]
[1673308839215,0.08250939,17187.0,17186.0,2.42855819]
[1673308839216,0.18987875,17187.0,17186.0,2.42855819]
[1673308839476,0.24587875,17187.0,17186.0,2.43655819]
[1673308844140,0.07157245,17187.0,17186.0,2.43655819]
[1673308844403,0.24587875,17187.0,17186.0,2.43655819]
[1673308845492,0.24587875,17187.0,17186.0,2.4364896]
[1673308846033,0.50902514,17187.0,17186.0,2.4364896]
[1673308846280,0.50736456,17187.0,17186.0,2.4364896]
[1673308846532,0.68173904,17187.0,17186.0,2.43655523]
[1673308847583,0.68173904,17187.0,17186.0,2.4364896]
[1673308848401,0.68339962,17187.0,17186.0,2.4364896]
[1673308848650,0.68173904,17187.0,17186.0,2.4364896]
[1673308849710,0.68173904,17187.0,17186.0,2.4354304]
[1673308850516,0.85611688,17187.0,17186.0,2.4354304]
[1673308850764,1.11769779,17187.0,17186.0,2.4354304]
[1673308851062,0.85611688,17187.0,17186.0,2.4354304]
[1673308851333,0.68183369,17187.0,17186.0,2.43555852]
[1673308853471,0.50754126,17187.0,17186.0,2.43555852]
[1673308854731,0.68349427,17187.0,17186.0,2.4354304]
[1673308854975,0.85788444,17187.0,17186.0,2.4354304]
[1673308855223,0.85622386,17187.0,17186.0,2.4354304]
[1673308855484,0.50754308,17187.0,17186.0,2.4354304]
[1673308855748,0.85622386,17187.0,17186.0,2.4354304]
[1673308855999,0.50754308,17187.0,17186.0,2.4354304]
[1673308856757,0.85622386,17187.0,17186.0,2.4354304]
[1673308857335,0.68183369,17187.0,17186.0,2.4354304]
[1673308858109,0.8562242,17187.0,17186.0,2.4354304]
[1673308858713,0.68183369,17187.0,17186.0,2.4354304]
[1673308859382,0.50754945,17187.0,17186.0,2.4354304]
[1673308859602,0.85789254,17187.0,17186.0,2.4354304]
[1673308859837,0.68183369,17187.0,17186.0,2.4354304]
[1673308860092,0.50754862,17187.0,17186.0,2.4354304]
[1673308860342,0.68183369,17187.0,17186.0,2.4354304]
[1673308861083,0.68349427,17187.0,17186.0,2.4354304]
[1673308861345,0.68183369,17187.0,17186.0,2.4354304]
[1673308862285,0.50756935,17187.0,17186.0,2.4354304]
[1673308863730,0.50922993,17187.0,17186.0,2.4354304]
[1673308863980,0.5076065,17187.0,17186.0,2.4354304]
[1673308864199,0.85628728,17187.0,17186.0,2.4354304]
[1673308864469,0.68183369,17187.0,17186.0,2.4354304]
[1673308864690,0.68349427,17187.0,17186.0,2.4354304]
[1673308864958,0.68183369,17187.0,17186.0,2.4354304]
[1673308865404,0.85631692,17187.0,17186.0,2.4354304]
[1673308865648,0.68183369,17187.0,17186.0,2.4354304]
[1673308865907,0.85631704,17187.0,17186.0,2.4354304]
[1673308866129,0.50763626,17187.0,17186.0,2.4354304]
[1673308866420,0.68183369,17187.0,17186.0,2.4354304]
[1673308867166,0.85632663,17187.0,17186.0,2.4354304]
[1673308867433,0.68183369,17187.0,17186.0,2.4354304]
[1673308867695,0.50930498,17187.0,17186.0,2.4354304]
[1673308867958,0.68183369,17187.0,17186.0,2.4354304]
[1673308868226,0.50764491,17187.0,17186.0,2.4354304]
[1673308872075,0.50930549,17187.0,17186.0,2.4354304]
[1673308872340,0.50764491,17187.0,17186.0,2.4354304]
[1673308872883,0.45164491,17187.0,17186.0,2.4274304]
[1673308873135,0.48264491,17187.0,17186.0,2.4284304]
[1673308873360,0.4619905,17187.0,17186.0,2.4284304]
[1673308874393,0.64292182,17187.0,17186.0,2.4284304]
[1673308874678,0.64126124,17187.0,17186.0,2.4284304]
[1673308875216,0.29258046,17187.0,17186.0,2.4284304]
[1673308876568,0.031,17187.0,17186.0,2.4284304]
[1673308876847,0.031,17187.0,17186.0,3.87864246]
[1673308877110,0.031,17187.0,17186.0,3.15470807]
[1673308877362,0.031,17187.0,17186.0,4.06968358]
[1673308877885,0.031,17187.0,17186.0,3.87890929]
[1673308878155,0.031,17187.0,17186.0,3.45470807]
[1673308878666,0.031,17187.0,17186.0,2.98048756]
[1673308878922,0.031,17187.0,17186.0,2.9801874]
[1673308879972,0.031,17187.0,17186.0,3.80817291]
[1673308881273,0.64072202,17190.0,17186.0,3.33802097]
[1673308881527,0.64072202,17190.0,17187.0,0.552857]
[1673308881787,0.64072202,17190.0,17188.0,1.74572108]
[1673308882122,0.64072202,17190.0,17188.0,1.98339897]
[1673308882308,0.64072202,17190.0,17188.0,1.74572108]
[1673308882582,0.29204124,17190.0,17188.0,1.74572108]
[1673308883107,0.67272202,17190.0,17188.0,1.74672108]
[1673308883364,0.49835085,17190.0,17188.0,1.74672108]
[1673308883615,0.17430961,17189.0,17188.0,2.43995758]
[1673308883865,0.49835085,17190.0,17188.0,2.43995758]
[1673308884670,0.84869221,17190.0,17188.0,2.43995758]
[1673308884883,0.49835085,17190.0,17188.0,2.43995758]
[1673308885935,0.84703163,17190.0,17188.0,2.43995758]
[1673308886174,0.49835085,17190.0,17188.0,2.43995758]
[1673308887684,0.50001143,17190.0,17188.0,2.4396395]
[1673308887935,0.17430961,17189.0,17188.0,2.4396395]
[1673308888699,0.20630961,17190.0,17188.0,2.6302395]
[1673308888952,0.20630961,17190.0,17189.0,0.362057]
[1673308889196,0.17430961,17190.0,17189.0,1.745301]
[1673308889448,0.63589007,17191.0,17189.0,1.745301]
[1673308889975,0.17430961,17191.0,17189.0,1.935001]
[1673308890234,0.47603391,17192.0,17190.0,0.362057]
[1673308890496,0.47603391,17192.0,17191.0,1.163398]
[1673308890759,0.18160892,17192.0,17191.0,1.163398]
[1673308891010,0.44318938,17192.0,17191.0,1.163398]
[1673308891263,0.18160892,17192.0,17191.0,1.163398]
[1673308891511,0.44318938,17192.0,17191.0,1.163398]
[1673308891762,0.18160892,17192.0,17191.0,1.163398]
[1673308892010,0.18560892,17192.0,17191.0,1.163398]
[1673308892271,0.18160892,17192.0,17191.0,1.745097]
[1673308892534,0.21360892,17192.0,17191.0,1.746097]
[1673308892796,0.47518938,17192.0,17191.0,1.746097]
[1673308893551,0.21360892,17192.0,17191.0,1.746097]
[1673308894607,0.03942537,17192.0,17191.0,2.28794184]
[1673308894906,0.03942537,17192.0,17191.0,2.28784052]
[1673308898473,0.03942537,17192.0,17191.0,2.47744052]
[1673308899233,0.03942537,17192.0,17191.0,2.83949752]
[1673308900518,0.03942537,17192.0,17191.0,2.47744052]
[1673308903350,0.03942537,17192.0,17191.0,2.28784052]
[1673308911495,0.03942537,17192.0,17191.0,2.28752337]
[1673308912017,0.03942537,17192.0,17191.0,1.70582437]
[1673308912282,1.00877185,17192.0,17191.0,0.001]
[1673308912545,1.00711127,17192.0,17191.0,0.001]
[1673308912886,1.20711127,17192.0,17191.0,0.001]
[1673308915108,1.20711127,17192.0,17191.0,0.00194352]
[1673308915438,1.20711127,17192.0,17191.0,0.001]
[1673308915648,1.3816085,17192.0,17191.0,0.001]
[1673308915865,1.38326908,17192.0,17191.0,0.00090453]
[1673308916113,1.55589169,17192.0,17191.0,0.00090453]
[1673308916358,1.81700279,17192.0,17191.0,0.00090453]
[1673308917147,1.81866337,17192.0,17191.0,0.00090453]
[1673308917398,1.38279972,17192.0,17191.0,0.00090453]
[1673308918172,1.23629914,17192.0,17191.0,0.00090453]
[1673308918426,1.23629914,17192.0,17191.0,0.58260353]
[1673308918683,1.23629914,17192.0,17191.0,0.00090453]
[1673308919439,1.23795972,17192.0,17191.0,0.00090453]
[1673308919695,1.67382337,17192.0,17191.0,0.00090453]
[1673308920582,1.6739158,17192.0,17191.0,0.00090453]
[1673308920745,1.41271227,17192.0,17191.0,0.00090453]
[1673308921014,1.93523726,17192.0,17191.0,0.00090453]
[1673308921266,1.41271227,17192.0,17191.0,0.00090453]
[1673308921518,1.58655866,17192.0,17191.0,0.00090453]
[1673308922029,2.02670552,17192.0,17191.0,0.00090453]
[1673308922286,2.02619136,17192.0,17191.0,0.00090453]
[1673308922546,0.00027127,17190.0,17188.0,1.14983101]
[1673308922817,0.53620137,17189.0,17188.0,0.56804301]
[1673308923083,0.17414437,17189.0,17188.0,0.56804301]
[1673308923612,0.37414437,17189.0,17188.0,0.56804301]
[1673308924145,0.37414437,17189.0,17188.0,1.27684401]
[1673308924146,0.37914437,17189.0,17188.0,1.27684401]
[1673308924714,0.37414437,17189.0,17188.0,1.14984401]
[1673308925220,0.63536092,17189.0,17188.0,0.581801]
[1673308925490,0.63736092,17189.0,17188.0,0.617801]
[1673308925768,0.66238726,17190.0,17188.0,2.68723956]
[1673308926019,0.20027127,17190.0,17189.0,0.362057]
[1673308926241,0.00027127,17190.0,17188.0,0.70415867]
[1673308926538,0.00027127,17190.0,17189.0,1.745301]
[1673308927250,0.03327127,17190.0,17189.0,1.746301]
[1673308927506,0.00027127,17190.0,17189.0,1.745301]
[1673308928037,0.00027127,17190.0,17189.0,2.107358]
[1673308928338,0.00027127,17190.0,17189.0,1.745301]
[1673308928548,0.00027127,17190.0,17189.0,2.115358]
[1673308928800,0.05727127,17190.0,17189.0,2.70882024]
[1673308929596,0.00027127,17190.0,17189.0,2.70082024]
[1673308929859,0.00027127,17190.0,17189.0,2.33876324]
[1673308930164,0.00027127,17190.0,17189.0,2.70882024]
[1673308930417,0.00027127,17190.0,17189.0,2.70082024]
[1673308930688,0.03527127,17190.0,17189.0,2.70182024]
[1673308931179,0.00027127,17190.0,17189.0,2.70082024]
[1673308931180,0.00027127,17190.0,17189.0,2.141358]
[1673308931453,0.00127127,17190.0,17189.0,3.55472379]
[1673308932253,0.00127127,17190.0,17189.0,4.15472379]
[1673308932766,0.00127127,17190.0,17189.0,5.15472379]
[1673308933577,0.00127127,17190.0,17189.0,4.73010767]
[1673308935410,0.00127127,17190.0,17189.0,4.43010767]
[1673308935671,0.00127127,17190.0,17189.0,3.43010767]
[1673308943330,0.00127127,17190.0,17189.0,4.46601829]
[1673308943580,0.00127127,17190.0,17189.0,5.22961807]
[1673308943840,0.00127127,17190.0,17189.0,4.90156956]
[1673308944330,0.00127127,17190.0,17189.0,5.22961382]
[1673308945134,0.00115649,17190.0,17189.0,5.59333432]
[1673308945388,0.00015649,17190.0,17189.0,5.55933432]
[1673308945640,0.00215649,17190.0,17189.0,5.69833432]
[1673308945903,0.00015649,17190.0,17189.0,5.75013432]
[1673308946170,0.00215649,17190.0,17189.0,5.88913432]
[1673308948001,0.00215649,17190.0,17189.0,6.48308199]
[1673308948264,0.00215649,17190.0,17189.0,7.00886149]
[1673308948505,0.00215649,17190.0,17189.0,7.00714734]
[1673308949008,0.002,17190.0,17189.0,7.35424575]
[1673308949506,0.002,17190.0,17189.0,7.35424449]
[1673308949757,0.002,17190.0,17189.0,7.05463291]
[1673308950036,0.002,17190.0,17189.0,6.70753576]
[1673308950590,0.002,17190.0,17189.0,6.00753576]
[1673308950822,0.002,17190.0,17189.0,6.18105751]
[1673308951320,0.002,17190.0,17189.0,6.65454866]
[1673308952106,0.002,17190.0,17189.0,6.48104649]
[1673308952607,0.0063873,17193.0,17190.0,0.2]
[1673308952870,0.0063873,17193.0,17192.0,0.1893]
[1673308953150,0.0063873,17193.0,17192.0,1.914687]
[1673308953632,0.0073873,17193.0,17192.0,1.914687]
[1673308954687,0.0073873,17193.0,17192.0,2.79643834]
[1673308954941,0.0063873,17193.0,17192.0,2.79643834]
[1673308955219,0.0073873,17193.0,17192.0,2.93643834]
[1673308956022,0.0073873,17193.0,17192.0,3.52969547]
[1673308957616,0.0073873,17193.0,17192.0,3.34039547]
[1673308958127,0.0073873,17193.0,17192.0,3.04039547]
[1673308958523,0.0073873,17193.0,17192.0,2.67833847]
[1673308958740,0.0073873,17193.0,17192.0,2.47833847]
[1673308960591,0.0073873,17193.0,17192.0,2.84039547]
[1673308963179,0.0073873,17193.0,17192.0,2.84030878]
[1673308965609,0.0073873,17193.0,17192.0,2.47825178]
[1673308966102,0.0073873,17193.0,17192.0,2.84030878]
[1673308966590,0.0073873,17193.0,17192.0,2.47825178]
[1673308969271,0.0073873,17193.0,17192.0,2.84030878]
[1673308970274,0.0073873,17193.0,17192.0,2.47825178]
[1673308971237,0.0073873,17193.0,17192.0,2.84030878]
[1673308971481,0.02137287,17193.0,17192.0,2.84030878]
[1673308971728,0.02137287,17193.0,17192.0,3.14030878]
[1673308972199,0.02137287,17193.0,17192.0,2.84030878]
[1673308973195,0.02137287,17193.0,17192.0,3.14030878]
[1673308973438,0.02137287,17193.0,17192.0,2.84030878]
[1673308974654,0.02137287,17193.0,17192.0,3.14030878]
[1673308976380,0.0073873,17193.0,17192.0,3.14030878]
[1673308976618,0.0073873,17193.0,17192.0,2.84030878]
[1673308978263,0.0073873,17193.0,17192.0,2.47825178]
[1673308979034,0.0073873,17193.0,17192.0,2.84030878]
[1673308980158,0.0073873,17193.0,17192.0,3.14030878]
[1673308980401,0.0073873,17193.0,17192.0,2.84030878]
[1673308981290,0.0073873,17193.0,17192.0,3.01384136]
[1673308981525,0.0073873,17193.0,17192.0,3.31384136]
[1673308982442,0.0073873,17193.0,17192.0,3.89373426]
[1673308985983,0.0073873,17193.0,17192.0,3.57417631]
[1673308986202,0.0073873,17193.0,17192.0,3.89363546]
[1673308986420,0.0073873,17193.0,17192.0,3.57417631]
[1673308986661,0.0073873,17193.0,17192.0,3.89363013]
[1673308988273,0.00731639,17193.0,17192.0,3.89363013]
[1673308989511,0.00731639,17193.0,17192.0,4.24072728]
[1673308989717,0.00731639,17193.0,17192.0,4.0671947]
[1673308989942,0.00731639,17193.0,17192.0,4.49197457]
[1673308991128,0.00731639,17193.0,17192.0,3.91592246]
[1673308991356,0.00731639,17193.0,17192.0,3.91685189]
[1673308992068,0.00731639,17193.0,17192.0,3.91688488]
[1673308993500,0.00277888,17193.0,17192.0,3.48208534]
[1673308993956,0.00277888,17193.0,17192.0,4.07603301]
[1673308995124,0.00277888,17193.0,17192.0,4.51070566]
[1673308995587,0.00277888,17193.0,17192.0,4.85840772]
[1673308997946,0.00277888,17193.0,17192.0,4.51070566]
[1673308999765,0.00277888,17193.0,17192.0,4.07603301]
[1673309000615,0.01758823,17193.0,17192.0,4.07603301]
[1673309001670,0.01758823,17193.0,17192.0,4.51046959]
[1673309001919,0.01758823,17193.0,17192.0,4.07603301]
[1673309002468,0.01758823,17193.0,17192.0,4.51044053]
[1673309002722,0.01758823,17193.0,17192.0,4.07603301]
[1673309002980,0.01758823,17193.0,17192.0,4.51044919]
[1673309003772,0.01758823,17193.0,17192.0,4.31964919]
[1673309004538,0.01758823,17193.0,17192.0,5.01964919]
[1673309010247,0.01758823,17193.0,17192.0,5.35769801]
[1673309010755,8.823e-05,17193.0,17192.0,5.35769801]
[1673309011012,0.00843833,17195.0,17193.0,0.2]
[1673309011299,0.00843833,17195.0,17194.0,6.12509368]
[1673309011549,0.00843833,17195.0,17194.0,6.7445475]
[1673309012852,0.00843833,17195.0,17194.0,4.44227131]
[1673309013124,0.00843833,17195.0,17194.0,4.488449]
[1673309013371,0.00843833,17195.0,17194.0,5.01138398]
[1673309013625,0.00843833,17195.0,17194.0,5.15138398]
[1673309014093,0.00843833,17195.0,17194.0,3.35138398]
[1673309014349,0.00843833,17195.0,17194.0,3.3513149]
[1673309014880,0.00843833,17195.0,17194.0,3.35223297]
[1673309016975,0.00843833,17195.0,17194.0,2.99024505]
[1673309021287,0.00843833,17195.0,17194.0,3.59024505]
[1673309021544,0.00843833,17195.0,17194.0,3.89024505]
[1673309021877,0.00843833,17195.0,17194.0,3.59024505]
[1673309022047,0.04206672,17195.0,17194.0,2.40772898]
[1673309022304,0.21621109,17195.0,17194.0,2.40772898]
[1673309023076,0.21787167,17195.0,17194.0,2.40772898]
[1673309023329,0.21621109,17195.0,17194.0,2.40772898]
[1673309024579,0.21787167,17195.0,17194.0,2.40772898]
[1673309025369,0.21621109,17195.0,17194.0,2.40772898]
[1673309026619,0.21787167,17195.0,17194.0,2.40772898]
[1673309026868,0.21621109,17195.0,17194.0,2.40772898]
[1673309028182,0.04206672,17195.0,17194.0,2.40772898]
[1673309029165,0.00843833,17195.0,17194.0,2.40772898]
[1673309029649,0.00843833,17195.0,17194.0,3.00772898]
[1673309030677,0.00843833,17195.0,17194.0,3.30272898]
[1673309031214,0.00843833,17195.0,17194.0,3.66473098]
[1673309033013,0.00843833,17195.0,17194.0,3.83848501]
[1673309033783,0.00843833,17195.0,17194.0,4.27308161]
[1673309034052,0.00843833,17195.0,17194.0,3.83848501]
[1673309034554,0.00843833,17195.0,17194.0,4.27308161]
[1673309034831,0.00843833,17195.0,17194.0,3.83940308]
[1673309035310,0.00843833,17195.0,17194.0,4.53461414]
[1673309035557,0.00843833,17195.0,17194.0,3.83940308]
[1673309035807,0.00843833,17195.0,17194.0,4.27399968]
[1673309036050,0.00843833,17195.0,17194.0,4.10001754]
[1673309036309,0.00843833,17195.0,17194.0,4.73461414]
[1673309036813,0.00843833,17195.0,17194.0,5.43480145]
[1673309037059,0.00843833,17195.0,17194.0,5.26089612]
[1673309037311,0.00843833,17195.0,17194.0,5.13306719]
[1673309037554,0.00843833,17195.0,17194.0,5.27304541]
[1673309038049,0.00843833,17195.0,17194.0,5.86699308]
[1673309038300,0.00843833,17195.0,17194.0,5.29265742]
[1673309038770,0.00843833,17195.0,17194.0,5.83100965]
[1673309040012,0.00843833,17195.0,17194.0,5.29265742]
[1673309040264,0.00843833,17195.0,17194.0,5.11891445]
[1673309041052,0.00843833,17195.0,17194.0,5.46656815]
[1673309041294,0.00843833,17195.0,17194.0,5.32656815]
[1673309041545,0.00859539,17196.0,17195.0,0.20487411]
[1673309041790,0.00859539,17196.0,17195.0,4.18033505]
[1673309042091,0.00859539,17196.0,17195.0,5.92502705]
[1673309042314,0.00859539,17196.0,17195.0,5.92489111]
[1673309043070,0.00859539,17196.0,17195.0,6.06389111]
[1673309044802,0.00859539,17196.0,17195.0,6.32441748]
[1673309045297,0.00859539,17196.0,17195.0,5.88990859]
[1673309045545,0.00859539,17196.0,17195.0,6.06389111]
[1673309046449,0.00859539,17196.0,17195.0,5.88983879]
[1673309046696,0.00859539,17196.0,17195.0,6.32434768]
[1673309046955,0.00859539,17196.0,17195.0,6.06389111]
[1673309047728,3.9e-07,17196.0,17195.0,5.71641994]
[1673309047972,0.01064172,17198.0,17195.0,5.71641994]
[1673309048227,0.01064172,17198.0,17197.0,1.77356078]
[1673309048486,0.01064172,17198.0,17197.0,5.19614338]
[1673309049716,0.01064172,17198.0,17197.0,5.33714338]
[1673309049964,0.01064172,17198.0,17197.0,5.84673335]
[1673309050508,0.01064172,17198.0,17197.0,5.67317257]
[1673309050774,0.01064172,17198.0,17197.0,5.33714338]
[1673309051286,0.01064172,17198.0,17197.0,5.59748455]
[1673309051545,0.01064172,17198.0,17197.0,5.33714338]
[1673309051795,0.01064172,17198.0,17197.0,5.59748455]
[1673309052517,0.01064172,17198.0,17197.0,6.86246272]
[1673309052779,0.01064172,17198.0,17197.0,7.34173246]
[1673309053282,0.01064172,17198.0,17197.0,7.03316273]
[1673309053839,0.01064172,17198.0,17197.0,6.77282156]
[1673309054079,0.01064172,17198.0,17197.0,6.11977694]
[1673309054348,0.01064172,17198.0,17197.0,6.38011811]
[1673309054607,0.01064172,17198.0,17197.0,6.11977694]
[1673309055667,0.01064172,17198.0,17197.0,6.62991338]
[1673309055935,0.01064172,17198.0,17197.0,5.53307011]
[1673309056240,0.01064172,17198.0,17197.0,4.93912244]
[1673309057550,0.01064172,17198.0,17197.0,5.23912244]
[1673309061939,0.01064172,17198.0,17197.0,4.87712044]
[1673309063773,0.01064172,17198.0,17197.0,5.23912244]
[1673309064026,0.01064172,17198.0,17197.0,4.87712044]
[1673309070832,0.01055198,17198.0,17197.0,4.87712044]
[1673309073057,0.01055198,17198.0,17197.0,5.05046711]
[1673309073307,0.01055198,17198.0,17197.0,4.87712044]
[1673309073563,0.01055198,17198.0,17197.0,5.05046711]
[1673309074603,0.01055198,17198.0,17197.0,5.41246911]
[1673309075375,0.01055198,17198.0,17197.0,6.13485833]
[1673309076603,0.01055198,17198.0,17197.0,6.56945493]
[1673309076863,0.01055198,17198.0,17197.0,6.94362265]
[1673309077116,0.01055198,17198.0,17197.0,6.50902605]
[1673309078121,0.01055198,17198.0,17197.0,6.50945459]
[1673309078365,0.01055198,17198.0,17197.0,6.1619045]
[1673309079565,0.01055198,17198.0,17197.0,5.65176806]
[1673309079829,0.01055198,17198.0,17197.0,6.2023031]
[1673309080088,0.00517533,17198.0,17197.0,6.2023031]
[1673309080611,0.00517533,17198.0,17197.0,6.20322101]
[1673309081124,0.00517533,17198.0,17197.0,5.65277368]
[1673309081890,0.00517533,17198.0,17197.0,7.2796735]
[1673309082161,0.00517533,17198.0,17197.0,7.80233502]
[1673309082415,0.01064172,17199.0,17197.0,8.61103901]
[1673309082680,0.01064172,17199.0,17198.0,2.16961944]
[1673309082982,0.01064172,17199.0,17198.0,3.91400544]
[1673309084197,0.01064172,17199.0,17198.0,4.05300544]
[1673309084454,0.01064172,17199.0,17198.0,4.48724491]
[1673309090073,0.01064172,17199.0,17198.0,4.66623347]
[1673309090354,0.01064172,17199.0,17198.0,5.10019674]
[1673309090674,0.01064172,17199.0,17198.0,4.05300544]
[1673309091108,0.01064172,17199.0,17198.0,4.48693922]
[1673309091366,0.01064172,17199.0,17198.0,4.75300544]
[1673309091627,0.01064172,17199.0,17198.0,5.18694003]
[1673309091876,0.01064172,17199.0,17198.0,4.75300544]
[1673309092149,0.01064172,17199.0,17198.0,4.61400544]
[1673309092393,0.01064172,17199.0,17198.0,5.95177808]
[1673309092914,0.01064172,17199.0,17198.0,5.95177917]
[1673309093932,0.01064172,17199.0,17198.0,5.23826817]
[1673309094181,0.01064172,17199.0,17198.0,5.7486666]
[1673309095236,0.01064172,17199.0,17198.0,6.09570781]
[1673309095485,0.01064172,17199.0,17198.0,5.39570781]
[1673309096528,0.01064172,17199.0,17198.0,4.88530938]
[1673309096779,0.01064172,17199.0,17198.0,5.39318142]
[1673309097292,0.01064172,17199.0,17198.0,4.83389239]
[1673309097809,0.01064172,17199.0,17198.0,4.88530938]
[1673309098064,0.01064172,17199.0,17198.0,5.58679858]
[1673309099603,0.01064172,17199.0,17198.0,5.41323453]
[1673309100380,0.01064172,17199.0,17198.0,5.41248367]
[1673309100650,0.01064172,17199.0,17198.0,4.80513034]
[1673309101438,0.01064172,17199.0,17198.0,4.7793173]
[1673309101701,0.01064172,17199.0,17198.0,4.5850783]
[1673309102513,0.01064172,17199.0,17198.0,4.06233648]
[1673309102746,0.0123023,17199.0,17198.0,2.5848752]
[1673309102999,0.01064172,17199.0,17198.0,2.5848752]
[1673309103255,0.01064172,17199.0,17198.0,2.4458752]
[1673309103504,0.01164172,17199.0,17198.0,2.5848752]
[1673309103760,0.0123023,17199.0,17198.0,2.4458752]
[1673309104506,0.01164172,17199.0,17198.0,2.5858752]
[1673309104769,0.01064172,17199.0,17198.0,2.7458752]
[1673309105052,0.01164172,17199.0,17198.0,2.8868752]
[1673309108356,0.01164172,17199.0,17198.0,3.06040882]
[1673309109374,0.01164172,17199.0,17198.0,3.26040882]
[1673309113117,0.0133023,17199.0,17198.0,3.26040882]
[1673309113375,0.01164172,17199.0,17198.0,3.26040882]
[1673309114188,0.04734644,17199.0,17198.0,1.303924]
[1673309114445,0.40934844,17199.0,17198.0,1.303924]
[1673309114755,0.24734644,17199.0,17198.0,1.303924]
[1673309116814,0.60934844,17199.0,17198.0,1.303924]
[1673309117329,0.24734644,17199.0,17198.0,1.303924]
[1673309117595,0.60934844,17199.0,17198.0,1.303924]
[1673309119095,0.24734644,17199.0,17198.0,1.303924]
[1673309119892,0.60934844,17199.0,17198.0,1.885386]
[1673309120635,0.24734644,17199.0,17198.0,1.885386]
[1673309120879,0.24568586,17199.0,17198.0,1.885386]
[1673309121129,0.60768786,17199.0,17198.0,1.885386]
[1673309122617,0.24568586,17199.0,17198.0,1.885386]
[1673309123387,1.03102177,17199.0,17198.0,1.303924]
[1673309124395,1.03102177,17199.0,17198.0,1.162924]
[1673309124396,1.20582672,17199.0,17198.0,1.162924]
[1673309124643,1.7987435,17199.0,17198.0,0.089]
[1673309124912,0.14492856,17198.0,17196.0,1.163027]
[1673309125163,0.98532095,17197.0,17196.0,1.163027]
[1673309125411,0.56366258,17197.0,17196.0,1.163027]
[1673309126159,0.56366258,17197.0,17196.0,1.180027]
[1673309127422,0.5951945,17197.0,17196.0,1.163027]
[1673309127666,0.6151945,17197.0,17196.0,1.164027]
[1673309127918,0.2531925,17197.0,17196.0,1.164027]
[1673309128140,0.6151945,17197.0,17196.0,1.164027]
[1673309129911,0.6151945,17197.0,17196.0,1.16394953]
[1673309130409,0.6151945,17197.0,17196.0,1.15917158]
[1673309130663,0.2531925,17197.0,17196.0,1.15917158]
[1673309130918,0.6151945,17197.0,17196.0,1.15917158]
[1673309131418,0.2531925,17197.0,17196.0,1.15917158]
[1673309131664,0.6151945,17197.0,17196.0,1.15917158]
[1673309132424,0.6151945,17197.0,17196.0,1.15417158]
[1673309133180,0.6151945,17197.0,17196.0,1.73570158]
[1673309135705,0.6151945,17197.0,17196.0,1.73070158]
[1673309138222,0.6151945,17197.0,17196.0,2.33070158]
[1673309138478,0.61353392,17197.0,17196.0,2.33070158]
[1673309138730,0.02,17197.0,17196.0,2.33070158]
[1673309138981,0.02,17197.0,17196.0,3.33070158]
[1673309139281,0.02,17197.0,17196.0,3.88641852]
[1673309139488,0.02,17197.0,17196.0,4.18641852]
[1673309139734,8.856e-05,17198.0,17196.0,4.18541852]
[1673309139991,8.856e-05,17198.0,17196.0,4.20241852]
[1673309140255,8.856e-05,17198.0,17197.0,0.68033299]
[1673309140519,8.856e-05,17198.0,17197.0,2.62482099]
[1673309141500,0.02008856,17198.0,17197.0,2.42582099]
[1673309141752,8.856e-05,17198.0,17197.0,2.42482099]
[1673309142506,8.856e-05,17198.0,17197.0,2.44182099]
[1673309142760,8.856e-05,17198.0,17197.0,2.74182099]
[1673309143265,8.856e-05,17198.0,17197.0,2.44182099]